[Event "GER-ch Youth U16 2019"]
[Site "Willingen"]
[Date "2019.06.09"]
[Round "1.14"]
[White "Rietschel, Tilo"]
[Black "Knuedel, Torben"]
[Result "0-1"]
[ECO "C84"]
[WhiteElo "2005"]
[BlackElo "2044"]
[Annotator "NA"]
[PlyCount "96"]
[EventDate "2019.06.07"]
[EventType "swiss"]
[EventRounds "9"]
[EventCountry "GER"]
[SourceTitle "playchess.com"]
[Source "ChessBase"]
[SourceQuality "1"]
[TimeControl "40/5400+30:1800+30"]

1. e4 {[%emt 0:00:00]} e5 {[%emt 0:00:00]} 2. Nf3 {[%emt 0:00:00]} Nc6 {[%emt 0:00:00]} 3. Bb5 {[%emt 0:00:00]} a6 {[%emt 0:00:01]} 4. Ba4 {[%emt 0:00:00]} Nf6 {[%emt 0:00:04]} 5. O-O {[%emt 0:00:00]} Be7 {[%emt 0:00:06]} 6. d4 {[%emt 0:00:00]} exd4 {[%emt 0:03:03]} 7. e5 {[%emt 0:00:13]} Nd5 {[%emt 0:04:16]} 8. Nxd4 {[%emt 0:01:52]} Nxd4 {[%emt 0:03:11]} 9. Qxd4 {[%emt 0:00:07]} Nb6 {[%emt 0:01:38]} 10. Bb3 {[%emt 0:02:25]} O-O {[%emt 0:03:27]} 11. Nd2 {[%emt 0:16:33]} d5 {[%emt 0:04:25]} 12. exd6 {[%emt 0:00:54]} Bxd6 {[%emt 0:00:56]} 13. Nf3 {[%emt 0:00:22]} c5 {[%emt 0:08:16]} 14. Qd3 {[%emt 0:03:36]} Qc7 {[%emt 0:04:20]} 15. c4 {[%emt 0:00:24]} Bg4 {[%emt 0:05:59]} 16. h3 {[%emt 0:07:15]} Rad8 {[%emt 0:02:17]} 17. Qc3 {[%emt 0:05:31]} Bf5 {[%emt 0:09:15]} 18. Bc2 {[%emt 0:04:28]} Bxc2 {[%emt 0:02:09]} 19. Qxc2 {[%emt 0:00:06]} Nd7 {[%emt 0:02:15]} 20. b3 {[%emt 0:06:05]} Ne5 {[%emt 0:04:00]} 21. Ng5 {[%emt 0:02:56]} Ng6 {[%emt 0:07:16]} 22. Be3 {[%emt 0:08:02]} Bh2+ {[%emt 0:05:27]} 23. Kh1 {[%emt 0:00:06]} Bf4 {[%emt 0:00:16]} 24. Rae1 {[%emt 0:05:00]} Bxg5 {[%emt 0:03:00]} 25. Bxg5 {[%emt 0:00:06]} Rd7 {[%emt 0:00:19]} 26. Qf5 {[%emt 0:06:30]} h6 {[%emt 0:01:40]} 27. Be3 {[%emt 0:01:53]} b6 {[%emt 0:00:24]} 28. Qg4 {[%emt 0:06:51]} Qc6 {[%emt 0:04:24]} 29. Rd1 {[%emt 0:06:01]} Re7 {[%emt 0:04:34]} 30. Rd5 {[%emt 0:01:28]} f5 {[%emt 0:01:27]} 31. Qd1 {[%emt 0:12:12]} Re6 {[%emt 0:03:02]} 32. Bd2 {[%emt 0:02:26]} f4 {[%emt 0:03:09]} 33. f3 {[%emt 0:00:47]} Ne7 {[%emt 0:00:37]} 34. Rd3 {[%emt 0:00:18]} Nf5 {[%emt 0:01:28]} 35. Re1 {[%emt 0:01:07]} Rxe1+ {[%emt 0:02:09]} 36. Bxe1 {[%emt 0:00:22]} Re8 {[%emt 0:03:03]} 37. Rd8 {[%emt 0:00:43]} Nd4 {[%emt 0:00:40]} 38. Rxe8+ {[%emt 0:00:11]} Qxe8 {[%emt 0:00:01]} 39. Bf2 {[%emt 0:01:09]} Qe2 {[%emt 0:00:29]} 40. Qxe2 {[%emt 0:00:09]} Nxe2 {[%emt 0:00:01]} 41. b4 {[%emt 0:02:33]} cxb4 {[%emt 0:01:56]} 42. Bxb6 {[%emt 0:01:40]} Nc3 {[%emt 0:01:28]} 43. c5 {[%emt 0:00:26]} Kf7 {[%emt 0:00:24]} 44. c6 {[%emt 0:03:56]} Ke6 {[%emt 0:00:11]} 45. Kg1 {[%emt 0:01:31]} Nxa2 {[%emt 0:00:29]} 46. Kf2 {[%emt 0:00:32]} b3 {[%emt 0:02:37]} 47. Bd4 {[%emt 0:03:15]} Nc1 {[%emt 0:00:14]} 48. Ke1 {[%emt 0:01:08]} b2 {[%emt 0:00:06] normal} 0-1

[Event "GER-ch Youth U16 2019"]
[Site "Willingen"]
[Date "2019.06.09"]
[Round "2.1"]
[White "Post, Hugo"]
[Black "Suvorov, Alexander"]
[Result "1/2-1/2"]
[ECO "B48"]
[WhiteElo "2113"]
[BlackElo "2325"]
[Annotator "NA RC"]
[PlyCount "41"]
[EventDate "2019.06.07"]
[EventType "swiss"]
[EventRounds "9"]
[EventCountry "GER"]
[SourceTitle "playchess.com"]
[Source "ChessBase"]
[SourceQuality "1"]
[TimeControl "40/5400+30:1800+30"]

1. e4 {[%emt 0:00:00]} c5 {[%emt 0:00:00]} 2. Nf3 {[%emt 0:00:00]} e6 {[%emt 0:00:00]} 3. d4 {[%emt 0:00:14]} cxd4 {[%emt 0:00:00]} 4. Nxd4 {[%emt 0:00:05]} Nc6 {[%emt 0:00:05]} 5. Nc3 {[%emt 0:00:23]} Qc7 {[%emt 0:00:24]} 6. Be3 {[%emt 0:00:43]} a6 {[%emt 0:00:21]} 7. Qf3 {[%emt 0:00:32]} d6 {[%emt 0:00:32]} 8. O-O-O {[%emt 0:00:48]} Bd7 {[%emt 0:02:22]} 9. Nxc6 {[%emt 0:00:53]} bxc6 {[%emt 0:03:09]} 10. g4 {[%emt 0:04:03]} Ne7 {[%emt 0:10:34]} 11. Bd3 {[%emt 0:08:31]} Ng6 {[%emt 0:06:49]} 12. Qg2 {[%emt 0:09:13]} Ne5 {[%emt 0:10:32]} 13. Be2 {[%emt 0:11:59]} d5 {[%emt 0:11:06]} 14. f4 {[%emt 0:16:17]} Ng6 {[%emt 0:01:01]} 15. Rhf1 {[%emt 0:02:38]} Bb4 {[%emt 0:12:16]} 16. Na4 {[%emt 0:02:55]} Qa5 {[%emt 0:03:13]} 17. b3 {[%emt 0:00:36]} Ba3+ {[%emt 0:15:04]} 18. Kb1 {[%emt 0:01:08]} Rb8 {[%emt 0:04:26]} 19. Nb2 {[%emt 0:09:03]} Qb4 {[%emt 0:07:41]} 20. Qg3 {[%emt 0:08:16]} Ne7 {[%emt 0:03:19]} 21. Nd3 {[%emt 0:05:31] normal} 1/2-1/2

[Event "GER-ch Youth U16 2019"]
[Site "Willingen"]
[Date "2019.06.09"]
[Round "2.2"]
[White "Knuedel, Torben"]
[Black "Koellner, Ruben Gideon"]
[Result "1/2-1/2"]
[ECO "B07"]
[WhiteElo "2044"]
[BlackElo "2299"]
[Annotator "NA"]
[PlyCount "58"]
[EventDate "2019.06.07"]
[EventType "swiss"]
[EventRounds "9"]
[EventCountry "GER"]
[SourceTitle "playchess.com"]
[Source "ChessBase"]
[SourceQuality "1"]
[TimeControl "40/5400+30:1800+30"]

1. e4 {[%emt 0:00:00]} d6 {[%emt 0:00:00]} 2. d4 {[%emt 0:00:00]} Nf6 {[%emt 0:00:00]} 3. Nc3 {[%emt 0:00:00]} e5 {[%emt 0:00:00]} 4. Nge2 {[%emt 0:00:00]} Nc6 {[%emt 0:04:17]} 5. h3 {[%emt 0:03:17]} g6 {[%emt 0:10:22]} 6. Be3 {[%emt 0:02:19]} Bg7 {[%emt 0:01:43]} 7. Qd2 {[%emt 0:02:50]} O-O {[%emt 0:01:13]} 8. g4 {[%emt 0:02:52]} a6 {[%emt 0:07:44]} 9. Bg2 {[%emt 0:03:50]} b5 {[%emt 0:10:38]} 10. a3 {[%emt 0:01:44]} exd4 {[%emt 0:05:19]} 11. Nxd4 {[%emt 0:01:14]} Ne5 {[%emt 0:00:20]} 12. b3 {[%emt 0:05:23]} Bb7 {[%emt 0:04:49]} 13. O-O {[%emt 0:04:54]} Re8 {[%emt 0:03:06]} 14. Bg5 {[%emt 0:03:04]} Qc8 {[%emt 0:12:11]} 15. Rae1 {[%emt 0:07:28]} Ned7 {[%emt 0:03:06]} 16. b4 {[%emt 0:03:03]} Nb6 {[%emt 0:02:46]} 17. f4 {[%emt 0:06:28]} Nc4 {[%emt 0:01:14]} 18. Qd3 {[%emt 0:04:16]} Nd7 {[%emt 0:02:27]} 19. Nd5 {[%emt 0:03:42]} c5 {[%emt 0:05:37]} 20. Nf3 {[%emt 0:02:17]} Bxd5 {[%emt 0:02:20]} 21. exd5 {[%emt 0:00:17]} cxb4 {[%emt 0:03:07]} 22. axb4 {[%emt 0:00:06]} Nb2 {[%emt 0:01:58]} 23. Rxe8+ {[%emt 0:02:16]} Qxe8 {[%emt 0:00:02]} 24. Qd2 {[%emt 0:00:26]} Qc8 {[%emt 0:01:14]} 25. Nd4 {[%emt 0:02:41]} Qc4 {[%emt 0:04:14]} 26. Nc6 {[%emt 0:02:59]} Bc3 {[%emt 0:04:22]} 27. Qc1 {[%emt 0:00:17]} Re8 {[%emt 0:02:46]} 28. f5 {[%emt 0:01:50]} Re2 {[%emt 0:02:23]} 29. fxg6 {[%emt 0:02:39]} hxg6 {[%emt 0:00:54] normal} 1/2-1/2

[Event "GER-ch Youth U16 2019"]
[Site "Willingen"]
[Date "2019.06.09"]
[Round "2.3"]
[White "Boder, Jan"]
[Black "Woelk, Tom-Frederic"]
[Result "0-1"]
[ECO "A01"]
[WhiteElo "2123"]
[BlackElo "2239"]
[Annotator "NA"]
[PlyCount "62"]
[EventDate "2019.06.07"]
[EventType "swiss"]
[EventRounds "9"]
[EventCountry "GER"]
[SourceTitle "playchess.com"]
[Source "ChessBase"]
[SourceQuality "1"]
[TimeControl "40/5400+30:1800+30"]

1. b3 {[%emt 0:00:00]} e5 {[%emt 0:00:00]} 2. Bb2 {[%emt 0:00:00]} Nc6 {[%emt 0:00:00]} 3. e3 {[%emt 0:00:00]} Nf6 {[%emt 0:00:03]} 4. Bb5 {[%emt 0:00:00]} e4 {[%emt 0:00:04]} 5. Ne2 {[%emt 0:00:17]} a6 {[%emt 0:00:04]} 6. Bxc6 {[%emt 0:00:04]} dxc6 {[%emt 0:00:04]} 7. Ng3 {[%emt 0:02:01]} h5 {[%emt 0:04:14]} 8. Nc3 {[%emt 0:00:22]} Bg4 {[%emt 0:00:26]} 9. f3 {[%emt 0:00:37]} exf3 {[%emt 0:05:51]} 10. gxf3 {[%emt 0:00:09]} h4 {[%emt 0:01:36]} 11. Nge4 {[%emt 0:00:37]} Nxe4 {[%emt 0:05:26]} 12. Nxe4 {[%emt 0:00:18]} Be6 {[%emt 0:00:12]} 13. Rg1 {[%emt 0:05:06]} f6 {[%emt 0:07:32]} 14. Qe2 {[%emt 0:03:49]} a5 {[%emt 0:00:54]} 15. Rg6 {[%emt 0:15:07]} Kf7 {[%emt 0:06:58]} 16. Qg2 {[%emt 0:17:21]} Bf5 {[%emt 0:18:13]} 17. Bxf6 {[%emt 0:01:45]} gxf6 {[%emt 0:00:29]} 18. Rxf6+ {[%emt 0:00:10]} Qxf6 {[%emt 0:00:08]} 19. Nxf6 {[%emt 0:00:04]} Kxf6 {[%emt 0:00:08]} 20. e4 {[%emt 0:00:36]} Be6 {[%emt 0:00:42]} 21. Qf2 {[%emt 0:04:12]} Bg7 {[%emt 0:09:38]} 22. d4 {[%emt 0:02:05]} a4 {[%emt 0:01:26]} 23. Rd1 {[%emt 0:02:35]} axb3 {[%emt 0:02:45]} 24. cxb3 {[%emt 0:03:06]} Kf7 {[%emt 0:06:16]} 25. f4 {[%emt 0:02:53]} Bg4 {[%emt 0:05:20]} 26. Rd2 {[%emt 0:01:58]} Bf8 {[%emt 0:00:58]} 27. Rd3 {[%emt 0:03:15]} Re8 {[%emt 0:04:23]} 28. Re3 {[%emt 0:01:54]} h3 {[%emt 0:01:57]} 29. Kf1 {[%emt 0:06:59]} Be7 {[%emt 0:00:29]} 30. Qc2 {[%emt 0:01:35]} Rd8 {[%emt 0:04:59]} 31. Qc4+ {[%emt 0:02:37]} Be6 {[%emt 0:00:24] normal} 0-1

[Event "GER-ch Youth U16 2019"]
[Site "Willingen"]
[Date "2019.06.09"]
[Round "2.4"]
[White "Koelle, Tobias"]
[Black "Gutkin, Ilya"]
[Result "1/2-1/2"]
[ECO "E00"]
[WhiteElo "2215"]
[BlackElo "2041"]
[Annotator "NA"]
[PlyCount "63"]
[EventDate "2019.06.07"]
[EventType "swiss"]
[EventRounds "9"]
[EventCountry "GER"]
[SourceTitle "playchess.com"]
[Source "ChessBase"]
[SourceQuality "1"]
[TimeControl "40/5400+30:1800+30"]

1. d4 {[%emt 0:00:00]} e6 {[%emt 0:00:00]} 2. c4 {[%emt 0:00:00]} Bb4+ {[%emt 0:00:00]} 3. Bd2 {[%emt 0:00:00]} Bxd2+ {[%emt 0:00:00]} 4. Qxd2 {[%emt 0:00:00]} Nf6 {[%emt 0:00:05]} 5. Nc3 {[%emt 0:00:11]} d5 {[%emt 0:00:12]} 6. e3 {[%emt 0:00:13]} O-O {[%emt 0:00:09]} 7. Nf3 {[%emt 0:00:12]} Qe7 {[%emt 0:00:22]} 8. Bd3 {[%emt 0:00:16]} Rd8 {[%emt 0:00:16]} 9. cxd5 {[%emt 0:00:09]} exd5 {[%emt 0:00:05]} 10. O-O {[%emt 0:00:25]} Nc6 {[%emt 0:07:18]} 11. Bb5 {[%emt 0:09:11]} Rd6 {[%emt 0:03:07]} 12. Rac1 {[%emt 0:07:16]} Ne4 {[%emt 0:14:09]} 13. Qd1 {[%emt 0:16:41]} Bg4 {[%emt 0:07:35]} 14. Be2 {[%emt 0:02:34]} Rad8 {[%emt 0:09:50]} 15. Ne5 {[%emt 0:05:08]} Bxe2 {[%emt 0:04:34]} 16. Nxc6 {[%emt 0:00:43]} Rxc6 {[%emt 0:01:22]} 17. Qxe2 {[%emt 0:00:15]} Rh6 {[%emt 0:05:58]} 18. Nxe4 {[%emt 0:02:32]} dxe4 {[%emt 0:00:57]} 19. Qg4 {[%emt 0:01:19]} c6 {[%emt 0:07:00]} 20. Rc5 {[%emt 0:02:11]} Re6 {[%emt 0:09:07]} 21. Rfc1 {[%emt 0:01:22]} g6 {[%emt 0:04:15]} 22. h3 {[%emt 0:01:17]} Qd7 {[%emt 0:01:40]} 23. a3 {[%emt 0:01:34]} Rde8 {[%emt 0:05:39]} 24. b4 {[%emt 0:02:02]} Rd6 {[%emt 0:01:27]} 25. Qxd7 {[%emt 0:01:18]} Rxd7 {[%emt 0:00:06]} 26. a4 {[%emt 0:00:04]} Re6 {[%emt 0:06:11]} 27. Kf1 {[%emt 0:01:43]} a6 {[%emt 0:05:44]} 28. Ke2 {[%emt 0:00:55]} Rd5 {[%emt 0:02:15]} 29. R1c2 {[%emt 0:09:16]} Red6 {[%emt 0:00:50]} 30. f3 {[%emt 0:02:23]} f5 {[%emt 0:03:56]} 31. fxe4 {[%emt 0:00:41]} fxe4 {[%emt 0:00:05]} 32. Rc1 {[%emt 0:00:05] normal} 1/2-1/2

[Event "GER-ch Youth U16 2019"]
[Site "Willingen"]
[Date "2019.06.09"]
[Round "2.8"]
[White "Burian, Simon"]
[Black "Stork, Oliver"]
[Result "1/2-1/2"]
[ECO "C52"]
[WhiteElo "2001"]
[BlackElo "2224"]
[Annotator "NA"]
[PlyCount "54"]
[EventDate "2019.06.07"]
[EventType "swiss"]
[EventRounds "9"]
[EventCountry "GER"]
[SourceTitle "playchess.com"]
[Source "ChessBase"]
[SourceQuality "1"]
[TimeControl "40/5400+30:1800+30"]

1. e4 {[%emt 0:00:00]} e5 {[%emt 0:00:00]} 2. Nf3 {[%emt 0:00:00]} Nc6 {[%emt 0:00:00]} 3. Bc4 {[%emt 0:00:00]} Bc5 {[%emt 0:00:00]} 4. b4 {[%emt 0:00:15]} Bxb4 {[%emt 0:00:00]} 5. c3 {[%emt 0:00:07]} Ba5 {[%emt 0:00:00]} 6. d4 {[%emt 0:00:12]} b5 {[%emt 0:00:06]} 7. Bd5 {[%emt 0:06:29]} Nge7 {[%emt 0:00:10]} 8. Nxe5 {[%emt 0:05:13]} Nxd5 {[%emt 0:02:07]} 9. exd5 {[%emt 0:00:20]} Nxe5 {[%emt 0:00:05]} 10. dxe5 {[%emt 0:00:10]} O-O {[%emt 0:02:06]} 11. O-O {[%emt 0:02:25]} d6 {[%emt 0:02:01]} 12. Ba3 {[%emt 0:08:34]} Re8 {[%emt 0:05:32]} 13. exd6 {[%emt 0:01:31]} cxd6 {[%emt 0:00:08]} 14. Qd3 {[%emt 0:05:53]} Qd7 {[%emt 0:14:53]} 15. Nd2 {[%emt 0:04:01]} Bb7 {[%emt 0:01:18]} 16. Rfe1 {[%emt 0:06:31]} Rac8 {[%emt 0:10:26]} 17. Bb4 {[%emt 0:02:43]} Bb6 {[%emt 0:02:59]} 18. Nf3 {[%emt 0:04:03]} h6 {[%emt 0:06:05]} 19. h3 {[%emt 0:03:53]} a5 {[%emt 0:09:39]} 20. Ba3 {[%emt 0:00:18]} Bc5 {[%emt 0:11:37]} 21. Bb2 {[%emt 0:04:04]} Ba6 {[%emt 0:04:21]} 22. Nh4 {[%emt 0:10:09]} Re5 {[%emt 0:06:03]} 23. Rxe5 {[%emt 0:02:23]} dxe5 {[%emt 0:00:05]} 24. Re1 {[%emt 0:03:47]} Re8 {[%emt 0:03:57]} 25. Qg3 {[%emt 0:03:59]} Bb7 {[%emt 0:05:57]} 26. c4 {[%emt 0:04:33]} bxc4 {[%emt 0:04:03]} 27. Rxe5 {[%emt 0:00:29]} Rxe5 {[%emt 0:00:36] normal} 1/2-1/2

[Event "GER-ch Youth U16 2019"]
[Site "Willingen"]
[Date "2019.06.09"]
[Round "2.9"]
[White "Hommel, Niclas"]
[Black "Koehler, Lukas"]
[Result "1-0"]
[ECO "B10"]
[WhiteElo "1953"]
[BlackElo "2068"]
[Annotator "NA"]
[PlyCount "51"]
[EventDate "2019.06.07"]
[EventType "swiss"]
[EventRounds "9"]
[EventCountry "GER"]
[SourceTitle "playchess.com"]
[Source "ChessBase"]
[SourceQuality "1"]
[TimeControl "40/5400+30:1800+30"]

1. e4 {[%emt 0:00:00]} c6 {[%emt 0:00:00]} 2. Nf3 {[%emt 0:00:11]} d5 {[%emt 0:00:00]} 3. exd5 {[%emt 0:00:05]} cxd5 {[%emt 0:00:00]} 4. Ne5 {[%emt 0:00:04]} Nd7 {[%emt 0:12:37]} 5. d4 {[%emt 0:03:15]} e6 {[%emt 0:05:46]} 6. Nd2 {[%emt 0:06:05]} Bd6 {[%emt 0:09:51]} 7. Ndf3 {[%emt 0:00:06]} Qc7 {[%emt 0:04:33]} 8. Nxd7 {[%emt 0:10:21]} Bxd7 {[%emt 0:00:21]} 9. Bd3 {[%emt 0:00:04]} h6 {[%emt 0:04:30]} 10. O-O {[%emt 0:00:57]} Nf6 {[%emt 0:00:30]} 11. Re1 {[%emt 0:03:56]} Bc6 {[%emt 0:06:36]} 12. Ne5 {[%emt 0:03:26]} Nd7 {[%emt 0:17:45]} 13. Bf4 {[%emt 0:10:20]} Bxe5 {[%emt 0:01:16]} 14. dxe5 {[%emt 0:04:15]} Qb6 {[%emt 0:03:05]} 15. b3 {[%emt 0:06:22]} Rc8 {[%emt 0:04:28]} 16. Qg4 {[%emt 0:02:08]} Kf8 {[%emt 0:04:48]} 17. h4 {[%emt 0:12:06]} h5 {[%emt 0:07:06]} 18. Qg3 {[%emt 0:04:34]} Bb5 {[%emt 0:01:26]} 19. Be3 {[%emt 0:02:53]} Qa6 {[%emt 0:00:51]} 20. Rac1 {[%emt 0:02:17]} Bxd3 {[%emt 0:03:35]} 21. cxd3 {[%emt 0:00:11]} Rc6 {[%emt 0:02:06]} 22. Qg5 {[%emt 0:01:27]} Qa5 {[%emt 0:03:24]} 23. b4 {[%emt 0:02:04]} f6 {[%emt 0:00:51]} 24. exf6 {[%emt 0:00:37]} gxf6 {[%emt 0:00:02]} 25. Qh6+ {[%emt 0:00:11]} Rxh6 26. Bxh6+ {normal} 1-0

[Event "GER-ch Youth U16 2019"]
[Site "Willingen"]
[Date "2019.06.09"]
[Round "2.11"]
[White "Kopylov, Daniel"]
[Black "Huber, Benedikt"]
[Result "1-0"]
[ECO "B40"]
[WhiteElo "2263"]
[BlackElo "2051"]
[Annotator "NA"]
[PlyCount "56"]
[EventDate "2019.06.07"]
[EventType "swiss"]
[EventRounds "9"]
[EventCountry "GER"]
[SourceTitle "playchess.com"]
[Source "ChessBase"]
[SourceQuality "1"]
[TimeControl "40/5400+30:1800+30"]

1. e4 {[%emt 0:00:00]} c5 {[%emt 0:00:00]} 2. Nf3 {[%emt 0:00:00]} e6 {[%emt 0:00:08]} 3. g3 {[%emt 0:00:24]} Nc6 {[%emt 0:00:28]} 4. Bg2 {[%emt 0:00:10]} Nf6 {[%emt 0:00:30]} 5. d3 {[%emt 0:01:48]} d5 {[%emt 0:00:19]} 6. Nbd2 {[%emt 0:00:24]} Be7 {[%emt 0:00:22]} 7. O-O {[%emt 0:00:25]} O-O {[%emt 0:00:40]} 8. e5 {[%emt 0:00:35]} Nd7 {[%emt 0:00:24]} 9. Re1 {[%emt 0:00:16]} Qc7 {[%emt 0:00:20]} 10. Qe2 {[%emt 0:00:33]} b5 {[%emt 0:00:28]} 11. Nf1 {[%emt 0:00:47]} a5 {[%emt 0:00:34]} 12. h4 {[%emt 0:00:26]} Ba6 {[%emt 0:00:20]} 13. N1h2 {[%emt 0:01:27]} Rfc8 {[%emt 0:01:11]} 14. Bg5 {[%emt 0:02:11]} Qd8 {[%emt 0:07:35]} 15. Qd2 {[%emt 0:22:58]} b4 {[%emt 0:10:00]} 16. Qf4 {[%emt 0:04:58]} a4 {[%emt 0:18:46]} 17. a3 {[%emt 0:05:07]} h6 {[%emt 0:09:41]} 18. Bxe7 {[%emt 0:06:24]} Qxe7 {[%emt 0:00:35]} 19. h5 {[%emt 0:00:21]} Nb6 {[%emt 0:04:56]} 20. Rac1 {[%emt 0:10:00]} c4 {[%emt 0:12:26]} 21. d4 {[%emt 0:02:40]} bxa3 {[%emt 0:00:11]} 22. bxa3 {[%emt 0:00:12]} Qxa3 {[%emt 0:01:34]} 23. g4 {[%emt 0:00:38]} Qe7 {[%emt 0:09:14]} 24. g5 {[%emt 0:01:13]} hxg5 {[%emt 0:00:32]} 25. Nxg5 {[%emt 0:00:44]} Nd7 {[%emt 0:00:21]} 26. c3 {[%emt 0:01:13]} Nf8 {[%emt 0:04:11]} 27. Ra1 {[%emt 0:10:55]} Bb5 {[%emt 0:00:46]} 28. Re3 {[%emt 0:04:37]} Nh7 {[%emt 0:06:18] normal} 1-0

[Event "GER-ch Youth U16 2019"]
[Site "Willingen"]
[Date "2019.06.09"]
[Round "2.12"]
[White "Roehr, Tobias"]
[Black "Jeschke, Jan"]
[Result "1-0"]
[ECO "E11"]
[WhiteElo "2208"]
[BlackElo "1915"]
[Annotator "NA"]
[PlyCount "58"]
[EventDate "2019.06.07"]
[EventType "swiss"]
[EventRounds "9"]
[EventCountry "GER"]
[SourceTitle "playchess.com"]
[Source "ChessBase"]
[SourceQuality "1"]
[TimeControl "40/5400+30:1800+30"]

1. d4 {[%emt 0:00:00]} Nf6 {[%emt 0:00:00]} 2. c4 {[%emt 0:00:00]} e6 {[%emt 0:00:00]} 3. Nf3 {[%emt 0:00:00]} Bb4+ {[%emt 0:00:14]} 4. Nbd2 {[%emt 0:00:00]} b6 {[%emt 0:01:19]} 5. a3 {[%emt 0:02:58]} Bxd2+ {[%emt 0:00:07]} 6. Bxd2 {[%emt 0:01:01]} Ba6 {[%emt 0:03:09]} 7. Qc2 {[%emt 0:08:13]} O-O {[%emt 0:10:29]} 8. Bg5 {[%emt 0:02:41]} c5 {[%emt 0:04:52]} 9. e4 {[%emt 0:07:12]} Qc7 {[%emt 0:05:51]} 10. e5 {[%emt 0:07:27]} Nh5 {[%emt 0:05:50]} 11. g4 {[%emt 0:05:42]} Bb7 {[%emt 0:00:31]} 12. Be2 {[%emt 0:10:04]} f6 {[%emt 0:00:56]} 13. Rg1 {[%emt 0:04:21]} Bxf3 {[%emt 0:03:17]} 14. gxh5 {[%emt 0:05:32]} fxg5 {[%emt 0:01:41]} 15. Bxf3 {[%emt 0:01:19]} Rxf3 {[%emt 0:01:38]} 16. Qe4 {[%emt 0:01:12]} Nc6 {[%emt 0:03:50]} 17. Qxf3 {[%emt 0:00:14]} Rf8 {[%emt 0:00:04]} 18. Qg4 {[%emt 0:03:31]} Nxd4 {[%emt 0:00:15]} 19. O-O-O {[%emt 0:02:05]} Rxf2 {[%emt 0:06:09]} 20. Qxg5 {[%emt 0:03:56]} Ne2+ {[%emt 0:00:49]} 21. Kb1 {[%emt 0:00:06]} Nxg1 {[%emt 0:00:37]} 22. Rxg1 {[%emt 0:01:09]} Rf7 {[%emt 0:00:26]} 23. h6 {[%emt 0:02:59]} g6 {[%emt 0:03:23]} 24. Rd1 {[%emt 0:07:19]} Rf5 {[%emt 0:06:34]} 25. Qe7 {[%emt 0:02:46]} Qxe5 {[%emt 0:00:29]} 26. Qxd7 {[%emt 0:03:22]} Rf7 {[%emt 0:09:43]} 27. Qc8+ {[%emt 0:01:05]} Rf8 {[%emt 0:00:06]} 28. Qb7 {[%emt 0:01:09]} Qf6 {[%emt 0:07:44]} 29. Qxa7 {[%emt 0:05:47]} e5 {[%emt 0:01:28] normal} 1-0

[Event "GER-ch Youth U16 2019"]
[Site "Willingen"]
[Date "2019.06.09"]
[Round "2.13"]
[White "Richter, Nils"]
[Black "Buller, Ian Joshua"]
[Result "1-0"]
[ECO "B90"]
[WhiteElo "2115"]
[BlackElo "1904"]
[Annotator "NA"]
[PlyCount "46"]
[EventDate "2019.06.07"]
[EventType "swiss"]
[EventRounds "9"]
[EventCountry "GER"]
[SourceTitle "playchess.com"]
[Source "ChessBase"]
[SourceQuality "1"]
[TimeControl "40/5400+30:1800+30"]

1. e4 {[%emt 0:00:00]} c5 {[%emt 0:00:00]} 2. Nf3 {[%emt 0:00:00]} d6 {[%emt 0:00:00]} 3. d4 {[%emt 0:00:00]} cxd4 {[%emt 0:00:00]} 4. Nxd4 {[%emt 0:00:00]} Nf6 {[%emt 0:00:00]} 5. Nc3 {[%emt 0:00:06]} a6 {[%emt 0:00:06]} 6. Rg1 {[%emt 0:00:15]} b5 {[%emt 0:10:10]} 7. g4 {[%emt 0:00:07]} Bb7 {[%emt 0:00:58]} 8. Bg2 {[%emt 0:00:08]} Qc7 {[%emt 0:23:09]} 9. Be3 {[%emt 0:04:49]} Nc6 {[%emt 0:05:04]} 10. g5 {[%emt 0:01:43]} Nd7 {[%emt 0:01:16]} 11. Nd5 {[%emt 0:09:15]} Qc8 {[%emt 0:03:34]} 12. Bh3 {[%emt 0:14:12]} Nxd4 {[%emt 0:03:35]} 13. Qxd4 {[%emt 0:21:40]} e6 {[%emt 0:02:01]} 14. Nc3 {[%emt 0:01:06]} Ne5 {[%emt 0:12:25]} 15. Rg3 {[%emt 0:02:00]} Qc4 {[%emt 0:06:10]} 16. f4 {[%emt 0:06:58]} Qxd4 {[%emt 0:01:40]} 17. Bxd4 {[%emt 0:00:01]} Nc6 {[%emt 0:07:47]} 18. Bf2 {[%emt 0:02:30]} Be7 {[%emt 0:03:46]} 19. O-O-O {[%emt 0:02:12]} b4 {[%emt 0:05:01]} 20. Na4 {[%emt 0:01:15]} h6 {[%emt 0:03:48]} 21. g6 {[%emt 0:01:49]} O-O {[%emt 0:01:39]} 22. Nb6 {[%emt 0:05:24]} Rad8 {[%emt 0:00:29]} 23. Nc4 {[%emt 0:00:49]} e5 {[%emt 0:00:55] normal} 1-0

[Event "GER-ch Youth U16 2019"]
[Site "Willingen"]
[Date "2019.06.09"]
[Round "2.14"]
[White "Pahl, Erik"]
[Black "Rietschel, Tilo"]
[Result "0-1"]
[ECO "B78"]
[WhiteElo "2113"]
[BlackElo "2005"]
[Annotator "NA"]
[PlyCount "60"]
[EventDate "2019.06.07"]
[EventType "swiss"]
[EventRounds "9"]
[EventCountry "GER"]
[SourceTitle "playchess.com"]
[Source "ChessBase"]
[SourceQuality "1"]
[TimeControl "40/5400+30:1800+30"]

1. e4 {[%emt 0:00:00]} c5 {[%emt 0:00:00]} 2. Nf3 {[%emt 0:00:00]} d6 {[%emt 0:00:00]} 3. d4 {[%emt 0:00:00]} cxd4 {[%emt 0:00:00]} 4. Nxd4 {[%emt 0:00:00]} Nf6 {[%emt 0:00:00]} 5. Nc3 {[%emt 0:00:00]} g6 {[%emt 0:00:00]} 6. Be3 {[%emt 0:00:08]} Bg7 {[%emt 0:00:05]} 7. f3 {[%emt 0:00:09]} O-O {[%emt 0:00:06]} 8. Qd2 {[%emt 0:00:03]} Nc6 {[%emt 0:00:05]} 9. Bc4 {[%emt 0:00:22]} Bd7 {[%emt 0:00:07]} 10. O-O-O {[%emt 0:00:07]} Rc8 {[%emt 0:00:24]} 11. Bb3 {[%emt 0:00:07]} Ne5 {[%emt 0:00:04]} 12. Kb1 {[%emt 0:00:07]} Nc4 {[%emt 0:01:59]} 13. Bxc4 {[%emt 0:00:07]} Rxc4 {[%emt 0:00:02]} 14. g4 {[%emt 0:00:07]} b5 {[%emt 0:06:53]} 15. h4 {[%emt 0:01:21]} h5 {[%emt 0:09:09]} 16. g5 {[%emt 0:08:49]} Ne8 {[%emt 0:01:18]} 17. f4 {[%emt 0:02:09]} b4 {[%emt 0:16:34]} 18. Nce2 {[%emt 0:01:59]} Qa5 {[%emt 0:12:49]} 19. Ng3 {[%emt 0:04:12]} Bxd4 {[%emt 0:15:17]} 20. Bxd4 {[%emt 0:00:25]} Nc7 {[%emt 0:07:30]} 21. f5 {[%emt 0:07:53]} Nb5 {[%emt 0:02:39]} 22. Ne2 {[%emt 0:05:35]} Rb8 {[%emt 0:04:31]} 23. Ka1 {[%emt 0:03:06]} Rbc8 {[%emt 0:12:31]} 24. Rc1 {[%emt 0:04:30]} R8c6 {[%emt 0:01:06]} 25. Qd3 {[%emt 0:03:17]} gxf5 {[%emt 0:04:55]} 26. g6 {[%emt 0:02:19]} Be6 {[%emt 0:02:26]} 27. gxf7+ {[%emt 0:01:42]} Bxf7 {[%emt 0:00:51]} 28. Rhg1+ {[%emt 0:04:04]} Kf8 {[%emt 0:00:05]} 29. Rg7 {[%emt 0:01:10]} Be6 {[%emt 0:00:48]} 30. Rf1 {[%emt 0:00:51]} Rxd4 {[%emt 0:00:31] normal} 0-1